Cogmind - Beta 17 @@@ ROGUE MODE // 2026.07.02 @ 13:16:08 Player: CloudSeaKing Result: Destroyed by as-72883 with Assembled Heavy Rifle Performance ------------- Evolutions (0) 0 Regions Visited (4) 800 Robots Destroyed (31) 155 Value Destroyed (518) 518 Prototype IDs (23) 460 Alien Tech Used (0) 0 Bonus (300) 300 TOTAL SCORE: 2233 Bonus ------- Aligned with FarCom 300 Cogmind --------- Core Integrity 0/250 Matter 300/300 Energy 35/100 System Corruption 0% Temperature Cool (20) Movement Walking (260) Ox2 Location -9/Mines Parts ------- > --- POWER (1) -------- (None) > --- PROPULSION (2) --- Aluminum Leg Aluminum Leg > --- UTILITY (2) ------ High-capacity Storage Unit Targeting Computer > --- WEAPON (2) ------- YOLO Cannon > --- INVENTORY (20) --- Ion Engine Improved Heat Sink Huge Storage Unit Signal Interpreter Small Laser Light Assault Rifle Light Assault Rifle Shotgun Shotgun Rocket Launcher Peak State ------------ > --- POWER ------------ Improved Ion Engine > --- PROPULSION ------- Light Treads Light Treads > --- UTILITY ---------- High-capacity Storage Unit Targeting Computer > --- WEAPON ----------- YOLO Cannon > --- INVENTORY -------- Ion Engine Aluminum Leg Aluminum Leg Improved Heat Sink Huge Storage Unit Signal Interpreter Small Laser Light Assault Rifle Light Assault Rifle Shotgun Shotgun Rocket Launcher [Rating: 27] Favorites ----------- Power Improved Ion Engine Engine Improved Ion Engine Propulsion Light Treads Treads Light Treads Leg Aluminum Leg Utility Targeting Computer Device Seismic Detector Storage Large Storage Unit Processor Targeting Computer Weapon Shotgun Energy Gun Medium Laser Energy Cannon YOLO Cannon Ballistic Gun Shotgun Ballistic Cannon Light Cannon Launcher Rocket Launcher Build | -11 -10 -10 -10 -9 ------- Run | Yrd Mat Min Exi Min Slots Evolved . | . . . . . Power . | . . . . . Propulsion . | . . . . . Utility . | . . . . . Weapon . | . . . . . Parts Attached 20 | 8 6 2 1 3 Power 3 | 1 1 . . 1 Engine 3 | 1 1 . . 1 Core . | . . . . . Reactor . | . . . . . Propulsion 4 | 2 1 . . 1 Treads 2 | 2 . . . . Leg 2 | . 1 . . 1 Wheel . | . . . . . Hover . | . . . . . Flight . | . . . . . Utility 5 | 2 2 . 1 . Device 1 | 1 . . . . Storage 3 | 1 1 . 1 . Processor 1 | . 1 . . . Hackware . | . . . . . Protection . | . . . . . Artifact . | . . . . . Weapon 8 | 3 2 2 . 1 Energy Gun 2 | 2 . . . . Energy Cannon 1 | . . . . 1 Ballistic Gun 3 | 1 1 1 . . Ballistic Cannon 1 | . 1 . . . Launcher 1 | . . 1 . . Special Weapon . | . . . . . Impact Weapon . | . . . . . Slashing Weapon . | . . . . . Piercing Weapon . | . . . . . Special Melee Weapon . | . . . . . Unidentified Prototypes . | . . . . . Parts Lost 6 | . 1 1 . 4 Power 2 | . . . . 2 Propulsion 2 | . . . . 2 Utility 1 | . 1 . . . Weapon 1 | . . 1 . . Highest Loss Streak 4 | . 1 1 . 4 To Critical Strikes 1 | . . . . 1 Average Backups 12 | 4 8 14 14 13 Power 2 | . 1 2 2 1 Propulsion 2 | 2 2 2 2 1 Utility 2 | . . 2 3 3 Weapon 5 | . 3 6 6 6 Tool/Special . | . . . . . Unused Backups 17 | . 4 3 2 8 Power 2 | . 1 . 1 . Propulsion 5 | . 2 2 1 . Utility 4 | . 1 . . 3 Weapon 6 | . . 1 . 5 Tool/Special . | . . . . . Average Slot Usage (%) 99 | . 98 99 100 97 Engine 13 | . 14 14 14 13 Treads 26 | . 22 28 28 25 Leg 1 | . 4 . . 2 Device 2 | . 7 . . . Storage 14 | . 14 14 14 14 Processor 11 | . 6 14 14 14 Ballistic Gun 15 | . 19 13 14 12 Ballistic Cannon 11 | . 4 13 14 12 Peak Build Rating 27 | 7 10 11 12 27 Average Rating 10 | 5 9 10 11 13 On Entrance 8 | . 7 10 11 12 Avg Prop Armor Cover (%) 7 | . 7 . . . Naked Turns . | . . . . . Heaviest Build 65 | 14 33 34 53 65 Greatest Support 40 | 40 40 40 40 40 Greatest Overweight (x) 3 | . 1 . 1 3 Average Overweight (x) . | . . . . 1 Largest Inventory Capacity 20 | 8 15 15 20 20 Average Capacity 13 | 7 10 15 16 20 Most Carried 15 | 6 13 15 15 15 Average Carried 12 | 4 8 14 14 14 Final Capacity 20 | 8 15 15 20 20 Final Carried 15 | 6 13 15 15 10 Class Distribution -------------------- 100% | Mutant Dominant Class ---------------- Mutant | -10/Materials Mutant | -10/Mines Mutant | -10/Exiles Mutant | -9/Mines Resources | -11 -10 -10 -10 -9 ----------- Run | Yrd Mat Min Exi Min Matter Collected 915 | 288 178 358 . 91 Remotely . | . . . . . Salvage Created 761 | 75 286 341 . 59 Parts 58 | 9 10 38 . 1 Haulers Intercepted 1 | . 1 . . . Recyclers Shooed 1 | . 1 . . . Parts Field Recycled . | . . . . . Retrieved Matter . | . . . . . Parts Self-Destructed . | . . . . . Prevented . | . . . . . Parts Restored . | . . . . . Kills | -11 -10 -10 -10 -9 ------- Run | Yrd Mat Min Exi Min Combat Hostiles Destroyed 27 | . 5 13 . 9 Guns 14 | . 4 10 . . Cannons 5 | . 1 3 . 1 AOE 7 | . . . . 7 Classes Destroyed 7 | 1 4 1 . 1 Worker 2 | . 1 1 . . Tunneler 9 | 4 . 4 . 1 Hauler 1 | . 1 . . . Recycler 1 | . 1 . . . Swarmer 9 | . . 9 . . Grunt 9 | . 5 4 . . Assembled 9 | . . . . 9 Best Kill Streak 9 | 2 3 3 . 9 Combat Bots Only 8 | . 3 3 . 8 Max Kills in Single Turn 6 | 1 1 2 . 6 Gunslinging . | . . . . . Exploded 6 | . . . . 6 Melee . | . . . . . Uniques/NPCs Destroyed . | . . . . . Combat | -11 -10 -10 -10 -9 -------- Run | Yrd Mat Min Exi Min Hostile Shots Fired 102 | . 17 46 . 39 Missed 27 | . 5 10 . 12 Hits 75 | . 12 36 . 27 Melee 3 | . . . . 3 Projectile 72 | . 12 36 . 24 Critical Strikes 3 | . 1 1 . 1 Part Disruptions 1 | . . . . 1 Damage Taken 1101 | . 137 373 . 591 Core 262 | . 23 73 . 166 Absorbed by Shields . | . . . . . Core Remaining (%) 100 | 100 . . . . Volleys Fired 75 | 8 32 29 . 6 Largest 2 | 2 2 2 . 2 Hottest 100 | 70 53 53 . 100 Shots Fired 140 | 16 59 56 . 9 Gun 97 | 16 50 28 . 3 Cannon 42 | . 9 27 . 6 Launcher 1 | . . 1 . . Special . | . . . . . Kinetic 128 | 8 59 55 . 6 Thermal 11 | 8 . . . 3 Explosive 1 | . . 1 . . Electromagnetic . | . . . . . Robot Hit Streak 8 | 5 7 8 . 2 Robot Miss Streak 3 | 1 3 3 . 2 Penetration Max . | . . . . . Secondary Targets . | . . . . . Shots Hit Robots 100 | 11 48 35 . 6 Core Hits 57 | 5 17 25 . 10 Critical Kills 1 | . . . . 1 Critical Parts Destroyed . | . . . . . Critical Strikes 3 | . 1 1 . 1 Meltdown 1 | . . . . 1 Blast 2 | . 1 1 . . Melee Attacks . | . . . . . Impact . | . . . . . Slashing . | . . . . . Piercing . | . . . . . Sneak Attacks . | . . . . . Combat Hostiles . | . . . . . Follow-up Attacks . | . . . . . Damage Inflicted 2467 | 125 634 612 . 1096 Guns 1068 | 125 508 424 . 11 Cannons 592 | . 123 184 . 285 Explosions 800 | . . . . 800 Melee . | . . . . . Ramming 7 | . 3 4 . . Kinetic 1334 | 37 631 608 . 58 Thermal 1126 | 88 . . . 1038 Explosive . | . . . . . Electromagnetic . | . . . . . Impact . | . . . . . Slashing . | . . . . . Piercing . | . . . . . Highest Corruption . | . . . . . Average Corruption . | . . . . . Corruption Purged . | . . . . . Corruption Blocked . | . . . . . Overload Shots . | . . . . . Overflow Damage 163 | . . . . 163 Projectiles 97 | . . . . 97 Explosions 66 | . . . . 66 Melee . | . . . . . Knockbacks 5 | . . 4 . 1 Impact . | . . . . . Kinetic 5 | . . 4 . 1 Secondary . | . . . . . Self-Inflicted Damage 149 | . . . . 149 Shots 2 | . . . . 2 Rammed 2 | . 1 1 . . Targets Rammed 2 | . 1 1 . . Kicked . | . . . . . Crushed . | . . . . . Highest Temperature 64 | 50 16 32 . 64 Average Temperature 17 | 24 6 19 . 28 Received Heat Transfer 245 | . 93 132 . 20 Siege Activations . | . . . . . Martial Activations . | . . . . . Shielding Activations . | . . . . . Robots Disrupted . | . . . . . Combat Hostiles . | . . . . . Robots Corrupted . | . . . . . Combat Hostiles . | . . . . . Parts Fried . | . . . . . Impact Corruptions . | . . . . . Robots Melted 1 | . . . . 1 Combat Hostiles 1 | . . . . 1 Parts Melted . | . . . . . Heat Transferred 1219 | 259 . . . 960 Parts Sabotaged . | . . . . . Parts Stolen . | . . . . . Parts Stripped . | . . . . . Power Chain Reactions . | . . . . . Alert | -11 -10 -10 -10 -9 ------- Run | Yrd Mat Min Exi Min Maximum Alert Level . | . . . . . Low Security (%) 100 | 100 100 100 . 100 Level 1 . | . . . . . Level 2 . | . . . . . Level 3 . | . . . . . Level 4 . | . . . . . Level 5 . | . . . . . High Security . | . . . . . Max Security . | . . . . . Peak Influence 135 | 5 79 135 . 18 Initial . | . . . . . Average 24 | 1 17 36 . . Influence Increases 577 | 20 164 359 . 34 Destroy 0b10 Robot/C 360 | . 100 260 . . Destroy 0b10 Robot/NC 65 | 20 15 25 . 5 Destroy Leader 72 | . 22 50 . . Successful Hack 12 | . 12 . . . Disable Machine 15 | . . 15 . . Destroy Structure 38 | . . 9 . 29 Lose Combat Pursuer 15 | . 15 . . . Influence Decreases 559 | 20 164 359 . 16 Time Decay 539 | 20 154 359 . 6 Lost Part 20 | . 10 . . 10 Squads Dispatched 1 | . 1 . . . Investigation 1 | . 1 . . . Extermination . | . . . . . Reinforcement . | . . . . . Assault . | . . . . . Garrison . | . . . . . Intercept . | . . . . . Searches Triggered . | . . . . . Construction Impeded . | . . . . . Haulers Reinforced . | . . . . . Active Scanning Responses . | . . . . . Cargo Convoy Interrupts . | . . . . . Stealth | -11 -10 -10 -10 -9 --------- Run | Yrd Mat Min Exi Min Distress Signals . | . . . . . Communications Jammed . | . . . . . Distress Signals . | . . . . . Times Spotted 39 | . 12 13 . 14 Peak Tracking Total 13 | . 3 3 . 13 Tactical Retreats 1 | . 1 . . . Traps | -11 -10 -10 -10 -9 ------- Run | Yrd Mat Min Exi Min Traps Triggered 5 | . 5 . . . Indirectly . | . . . . . Trap Hack Attempts . | . . . . . Triggered . | . . . . . Disarmed . | . . . . . Reprogrammed . | . . . . . Reused . | . . . . . Traps Extracted . | . . . . . Installed . | . . . . . Triggered . | . . . . . Machines | -11 -10 -10 -10 -9 ---------- Run | Yrd Mat Min Exi Min Machines Disabled 1 | . . 1 . . Max in Single Turn 1 | . . 1 . . Machines Repaired . | . . . . . Machines Dismantled . | . . . . . Machines Sabotaged . | . . . . . Overloaded Fab Kills . | . . . . . Hacking | -11 -10 -10 -10 -9 --------- Run | Yrd Mat Min Exi Min Machines Accessed 7 | . 5 . 2 . Terminals 4 | . 4 . . . Fabricators . | . . . . . Repair Stations . | . . . . . Recycling Units 1 | . 1 . . . Scanalyzers . | . . . . . Garrison Access . | . . . . . Total Hacks 19 | . 17 . 2 . Successful 7 | . 5 . 2 . Failed 11 | . 11 . . . Catastrophic 3 | . 3 . . . Database Lockouts 1 | . 1 . . . Manual 13 | . 12 . 1 . Terminals 14 | . 14 . . . Fabricators . | . . . . . Repair Stations . | . . . . . Recycling Units 3 | . 3 . . . Scanalyzers . | . . . . . Garrison Access . | . . . . . Terminal Hacks 5 | . 3 . 2 . Record 1 | . . . 1 . Robot Analysis 1 | . 1 . . . Branch Access Points 1 | . 1 . . . Hauler Manifests 1 | . 1 . . . Proto ID Catalog 1 | . . . 1 . Fabricator Hacks . | . . . . . Repair Station Hacks . | . . . . . Recycling Unit Hacks 1 | . 1 . . . Retrieve Components 1 | . 1 . . . Scanalyzer . | . . . . . Garrison Access Hacks . | . . . . . Unauthorized Hacks 1 | . 1 . . . Terminals 1 | . 1 . . . Botnet 1 | . 1 . . . Fabricators . | . . . . . Repair Stations . | . . . . . Recycling Units . | . . . . . Scanalyzers . | . . . . . Garrison Access . | . . . . . Data Cores Recovered . | . . . . . Used . | . . . . . Hacking Detections 4 | . 4 . . . Full Trace Events . | . . . . . Feedback Events . | . . . . . Feedback Blocked . | . . . . . Robot Schematics Acquired . | . . . . . Robots Built . | . . . . . Authchips . | . . . . . Time . | . . . . . Total Robot Build Rating . | . . . . . Part Schematics Acquired . | . . . . . Parts Built . | . . . . . Authchips . | . . . . . Time . | . . . . . Total Part Build Rating . | . . . . . Part Studies Acquired . | . . . . . Parts Repaired . | . . . . . Time . | . . . . . Parts Recycled . | . . . . . Recycled Matter . | . . . . . Retrieved Matter . | . . . . . Retrieved Components 9 | . 9 . . . Parts Scanalyzed . | . . . . . Part Schematics Acquired . | . . . . . Parts Damaged . | . . . . . Bothacking | -11 -10 -10 -10 -9 ------------ Run | Yrd Mat Min Exi Min Used RIF Installer . | . . . . . Robots Hacked . | . . . . . Non-combat . | . . . . . Combat . | . . . . . Robot Hacks Applied . | . . . . . Relay Couplers Released . | . . . . . Fabnet Peak Effective % . | . . . . . Robots Rewired . | . . . . . Allies Hacked . | . . . . . Hacks Repelled . | . . . . . Allies | -11 -10 -10 -10 -9 -------- Run | Yrd Mat Min Exi Min Total Allies 1 | . . . . 1 Largest Group 1 | . . . . 1 Highest-Rated Group 31 | . . . . 31 Highest-Rated Ally 31 | . . . . 31 Total Orders . | . . . . . Ally Attacks 7 | . . . . 7 Total Damage 62 | . . . . 62 Kills 2 | . . . . 2 Allies Corrupted . | . . . . . Allies Melted . | . . . . . Intel | -11 -10 -10 -10 -9 ------- Run | Yrd Mat Min Exi Min Active Infowar (turns) 461 | 21 440 . . . Seismic 461 | 21 440 . . . Robot Analysis Total 1 | . 1 . . . Derelict Logs Recovered 2 | . . 2 . . Drone Launches . | . . . . . Drone Recoveries . | . . . . . Exploration | -11 -10 -10 -10 -9 ------------- Run | Yrd Mat Min Exi Min Turns Passed 3161 | 187 871 1153 772 178 Spaces Moved 1622 | 95 363 652 449 63 Core 4 | 4 . . . . Treads 1612 | 91 357 652 449 63 Legs 6 | . 6 . . . Wheels . | . . . . . Hover . | . . . . . Flight . | . . . . . Fastest Speed 50 | 50 160 160 160 240 Average Speed 171 | 155 182 160 171 245 Slowest Speed 400 | 160 240 160 240 400 Overloaded Moves . | . . . . . Propulsion Burnouts . | . . . . . Robots Hopped . | . . . . . Potential Cave-ins . | . . . . . Cave-ins Triggered . | . . . . . Exploration Rate (%) 54 | 4 59 99 90 22 Regions Visited 4 Branch Regions 3 Pre-discovered Areas 2 | . . 1 1 . Known Exits Taken 1 | . 1 . . . Unknown Exits Taken 3 | 1 . 1 1 . Scrap Searched 1 | . . 1 . . Spaces Dug 13 | . . 13 . . Terrain Destroyed 63 | . . 13 . 50 Melee . | . . . . . Projectile 1 | . . . . 1 AOE 62 | . . 13 . 49 Terrain Rammed . | . . . . . Walls Destroyed . | . . . . . Machines Disabled . | . . . . . Actions | -11 -10 -10 -10 -9 --------- Run | Yrd Mat Min Exi Min Total 1867 | 116 516 707 453 75 Wait 95 | . 86 9 . . Move 1618 | 94 362 651 448 63 Hop . | . . . . . Pick Up 28 | 6 13 8 1 . Fast Attach 14 | 7 7 . . . Attach 8 | . 3 1 . 4 Detach 1 | . 1 . . . Swap 8 | 1 3 3 1 . Drop 18 | . 8 5 3 2 Fire 75 | 8 32 29 . 6 Melee . | . . . . . Ram . | . . . . . Kick . | . . . . . Crush 2 | . 1 1 . . Escape Stasis . | . . . . . Rewire . | . . . . . Trap . | . . . . . Miscellaneous . | . . . . . Route ------- -11/Scrapyard -10/Materials (discovered 3 exits: [*Mat] / *Min / [*Sub]) -10/Mines (discovered 4 exits: [*Mat x2] / *Exi / [*Sub]) -10/Exiles -9/Mines History --------- Turn | Location | Event 41 | -11/Scrapyard | Discovered new exit (range 15) 188 | -11/Scrapyard | Entered Materials 303 | -10/Materials | Build established: Mutant 318 | -10/Materials | Central database locked down 326 | -10/Materials | Discovered new exit (range 4) 431 | -10/Materials | Identified exit to Mines 985 | -10/Materials | Discovered new exit (range 9) 1059 | -10/Materials | Entered Mines 1169 | -10/Mines | Discovered new exit (range 10) 1205 | -10/Mines | Discovered new exit (range 9) 1647 | -10/Mines | Found a Scrap Suit stashed away for nefarious purposes 1677 | -10/Mines | Received a Rocket Launcher from a helpful Derelict 1695 | -10/Mines | Found a hidden stash of uninstalled traps 1917 | -10/Mines | Learned location of Zion (-6) 2117 | -10/Mines | Discovered new exit (range 12) 2205 | -10/Mines | Deemed a non-threat by the Exiles lab entrance 2205 | -10/Mines | Discovered new exit (range 5) 2212 | -10/Mines | Entered Exiles 2251 | -10/Exiles | Met 8R-AWN 2283 | -10/Exiles | Met EX-HEX 2345 | -10/Exiles | Met EX-DEC 2398 | -10/Exiles | Met EX-BIN 2416 | -10/Exiles | Aligned with FarCom system 2417 | -10/Exiles | Given EX-Vault access code 2456 | -10/Exiles | Opened EX-Vault 2466 | -10/Exiles | Found YOLO Cannon 2498 | -10/Exiles | Warned to stay clear of 0b10 Research branches 2617 | -10/Exiles | Visited The Gauntlet 2960 | -10/Exiles | Discovered new exit (range 10) 2984 | -10/Exiles | Left Exiles lab with YOLO Cannon 2984 | -10/Exiles | Entered Mines 2990 | -9/Mines | Received a Mining Laser from a helpful Derelict 3081 | -9/Mines | Assembled infested the area 3086 | -9/Mines | Assisted by a Guerilla fighting off Assembled 3144 | -9/Mines | Core integrity fell below 50% 3159 | -9/Mines | Core integrity fell below 20% 3162 | -9/Mines | Destroyed by as-72883 with Assembled Heavy Rifle Last Messages --------------- 03152_ LO-0PI(g) Imp. Heat Sink severed. 03155_ as-56019 destroyed. 03155_ LO-0PI(g) destroyed. 03156_ Acquired 15 matter. 03157_ Acquired 10 matter. 03157_ as-26102 destroyed. 03157_ Destroyed Asb. Blade. 03157_ as-26598 destroyed. 03157_ Imp. Ion Engine destroyed. 03157_ Destroyed Imp. Ion Engine. 03157_ as-55992 destroyed. 03157_ as-11135 destroyed. 03157_ as-11929 destroyed. 03157_ as-62139 destroyed. 03157_ Destroyed Mining Laser. 03161_ Destroyed Asb. Hover Unit. 03161_ as-25014 suffers critical hit (Meltdown). 03161_ as-06739 destroyed. 03161_ Destroyed Wheel. 03161_ T-07 Excavator destroyed. Map ----- +----------------------------------------------------+ | ?????????????????????????????????????????????????? | | ?????????????????????????????????????????????????? | | ?????????????????????????????????????????????????? | | ?????????????????????????????????????????????????? | | ?????????????????????????????????????????????????? | | ?????????????????????????????????????????????????? | | ?????????????????????????????????????????????????? | | ?????????????????????????????????????????????????? | | ?????????????????????????????????????????????????? | | ?????????????????????????????????????????????????? | | ????????????????????????????????d????????????????? | | ?????????????????????????????????????????????????? | | ?????????????????????????????????????????????????? | | ????????????????##? ??????????????????????????? | | ????????????????# ??????????????????????????? | | ?????????????? ## ??????????????????????????? | | ???????????? % ??????????????????????????? | | ????????????? = ??????????????????????????? | | ?????????????# ??????????????? ????????? | | ??????????????# ?????######?? ???????? | | ???????????????# ##### ;;# #???????? | | ????????????????# # #????????? | | ?????????????????# a ; ;% #????????? | | ???####???????????# ; % %a [ % #????????? | | #### ##?###???????# ; !% ! a *%??????? | | # ## ##??????# ;;@! ;;;< % !??????? | | #??????# *%; #???? #???????? | | | #??????# ; #####???????????????? | | ## ##??????# ######???????????????????? | | #?## ##???????# ##??????????????????????? | | ##???# ##????????# #??????????????????????? | | ?????# #?????????# #??????????????????????? | | ?????# ####??????# ##??????????????????????? | | ????## ###???## ##???????????????????????? | | ???## ##### #????????????????????????? | | ??## #????????????????????????? | | ??# #????????????????????????? | | ??##### ## #????????????????????????? | | ??????## ## #????????????????????????? | | ??????## #### ##???????????????????????? | | ???#### ##??## #???????????????????????? | | ???# #####????# #??????????????????????? | | ??# ##????????# #??????????????????????? | | ??# #?????????# #??????????????????????? | | ??## ##?????????# #??????????????????????? | | ???### ##??????????## ##??????????????????????? | | ?????###??????????????####???????????????????????? | | ?????????????????????????????????????????????????? | | | | | +----------------------------------------------------+ Best States ------------- Heat Dissipation 25 Energy Generation 12 Energy Capacity 265 Matter Stores 300 Matter Capacity 300 Sight Range 16 Terrain Scan Density 10 Evasion (%) 40 Targeting Accuracy 5 Recoil Reduction 2 Item Schematics ----------------- None Robot Schematics ------------------ None Fabricated ------------ Nothing Repaired ---------- Nothing Studied --------- None Alien Tech Used ----------------- None Achievements -------------- None Challenges ------------ None Game ------ Seed MobileZhirovProtection Manual? 0 Play Time 00:16:54 Cumulative 56.1 hours Start 2026.07.02 @ 13:00:39 End 2026.07.02 @ 13:16:08 Sessions 1 Manual Loads 0 Difficulty Rogue Special Mode None Game No. 59 Rogue 59 Adventurer 0 Explorer 0 Win Type - Total 2 Types 2/0/0/0/0/0/0/0/0/0 Lore% 37 Gallery% 37 Achievement% 36 Wizard Run 0 Options --------- Layout 1 ASCII 0 Keyboard 0 Movement Arrows Keybinds 0 Fullscreen 2 Font 32/SmallcapsGlow Map View 50x35 Zoom Use 0% Tactical HUD 1 Map Filters NONE Filters NONE Steam 1 RUN: ef724fe7-eef1-4496-92f1-1510125ebc39